[Event "*** Titled Tuesday Blitz"]
[Site "Chess.com"]
[Date "2020.10.27"]
[Round "2"]
[White "Dream2World_Number1"]
[Black "PavelShkapenko"]
[Result "1-0"]
[WhiteElo "2074"]
[BlackElo "2627"]
[TimeControl "180+1"]
[EndTime "10:17:46 PDT"]
[Termination "Dream2World_Number1 won by resignation"]

1. e4 {[%clk 0:03:00.9]} 1... e5 {[%clk 0:02:53.6]} 2. Nf3 {[%clk 0:03:00.3]}
2... Nc6 {[%clk 0:02:53.7]} 3. Bb5 {[%clk 0:03:00.4]} 3... Bc5 {[%clk
0:02:53.2]} 4. O-O {[%clk 0:02:59.4]} 4... d6 {[%clk 0:02:53.4]} 5. c3 {[%clk
0:02:59.1]} 5... Bd7 {[%clk 0:02:53.3]} 6. d4 {[%clk 0:02:57]} 6... Bb6 {[%clk
0:02:53.6]} 7. h3 {[%clk 0:02:55.8]} 7... Nge7 {[%clk 0:02:52.7]} 8. Re1 {[%clk
0:02:55.1]} 8... O-O {[%clk 0:02:52.6]} 9. Ba4 {[%clk 0:02:53]} 9... exd4 {[%clk
0:02:50.7]} 10. cxd4 {[%clk 0:02:52.4]} 10... d5 {[%clk 0:02:51.1]} 11. e5
{[%clk 0:02:50.3]} 11... Nf5 {[%clk 0:02:40.9]} 12. Bxc6 {[%clk 0:02:49.7]}
12... Bxc6 {[%clk 0:02:40.6]} 13. Nc3 {[%clk 0:02:50.3]} 13... Qd7 {[%clk
0:02:34.9]} 14. Bf4 {[%clk 0:02:38.6]} 14... Rae8 {[%clk 0:02:33.1]} 15. Qd3
{[%clk 0:02:36.5]} 15... Ne7 {[%clk 0:02:29.3]} 16. Bg3 {[%clk 0:02:30.1]} 16...
Qf5 {[%clk 0:02:28.8]} 17. Rad1 {[%clk 0:02:25]} 17... Qxd3 {[%clk 0:02:28.1]}
18. Rxd3 {[%clk 0:02:25.9]} 18... Bd7 {[%clk 0:02:24.2]} 19. Bh4 {[%clk
0:02:18.9]} 19... c6 {[%clk 0:02:23.5]} 20. Bxe7 {[%clk 0:02:18.3]} 20... Rxe7
{[%clk 0:02:23.3]} 21. Na4 {[%clk 0:02:15.9]} 21... Bc7 {[%clk 0:02:22.4]} 22.
Nc5 {[%clk 0:02:15.5]} 22... Bc8 {[%clk 0:02:22.5]} 23. Nd2 {[%clk 0:02:10.9]}
23... f6 {[%clk 0:02:18.3]} 24. f4 {[%clk 0:02:08.7]} 24... fxe5 {[%clk
0:02:17.9]} 25. fxe5 {[%clk 0:02:08.7]} 25... Bb6 {[%clk 0:02:05.5]} 26. b4
{[%clk 0:02:08]} 26... Ref7 {[%clk 0:01:35.6]} 27. Rf3 {[%clk 0:02:03.8]} 27...
Rxf3 {[%clk 0:01:34.8]} 28. Nxf3 {[%clk 0:02:04.2]} 28... h6 {[%clk 0:01:28.7]}
29. a4 {[%clk 0:01:55.9]} 29... Bd8 {[%clk 0:01:28.4]} 30. Rf1 {[%clk 0:01:44]}
30... Be7 {[%clk 0:01:28]} 31. g4 {[%clk 0:01:34.2]} 31... b6 {[%clk 0:01:26.1]}
32. Nd3 {[%clk 0:01:33.3]} 32... Ba6 {[%clk 0:01:25.9]} 33. Nfe1 {[%clk
0:01:32.3]} 33... Rxf1+ {[%clk 0:01:25]} 34. Kxf1 {[%clk 0:01:33.2]} 34... Bxb4
{[%clk 0:01:25]} 35. Kf2 {[%clk 0:01:31.1]} 35... Bc3 {[%clk 0:00:59.8]} 36. Ke3
{[%clk 0:01:28.8]} 36... Kf7 {[%clk 0:01:00.3]} 37. Nf3 {[%clk 0:01:25.3]} 37...
g5 {[%clk 0:00:53.1]} 38. h4 {[%clk 0:01:25.3]} 38... gxh4 {[%clk 0:00:52.7]}
39. Nxh4 {[%clk 0:01:26.2]} 39... c5 {[%clk 0:00:44]} 40. dxc5 {[%clk
0:01:25.6]} 40... Bxd3 {[%clk 0:00:43.9]} 41. Kxd3 {[%clk 0:01:26.5]} 41... Bxe5
{[%clk 0:00:44]} 42. cxb6 {[%clk 0:01:23.3]} 42... axb6 {[%clk 0:00:44.1]} 43.
Nf5 {[%clk 0:01:20.9]} 43... Bg7 {[%clk 0:00:42.9]} 44. Nxg7 {[%clk 0:01:02.9]}
44... Kxg7 {[%clk 0:00:42.9]} 45. Kd4 {[%clk 0:01:03.8]} 45... Kg6 {[%clk
0:00:42.9]} 46. Kxd5 {[%clk 0:01:04.1]} 46... Kg5 {[%clk 0:00:43.4]} 47. Kc6
{[%clk 0:01:04.6]} 47... Kxg4 {[%clk 0:00:43.8]} 48. Kxb6 {[%clk 0:01:05]} 48...
h5 {[%clk 0:00:43.3]} 49. a5 {[%clk 0:01:05.5]} 49... h4 {[%clk 0:00:42.8]} 50.
a6 {[%clk 0:01:06.4]} 50... h3 {[%clk 0:00:36]} 51. a7 {[%clk 0:01:07.3]} 51...
Kg3 {[%clk 0:00:34.6]} 52. a8=Q {[%clk 0:01:07.1]} 52... Kh2 {[%clk 0:00:34.7]}
53. Qa2+ {[%clk 0:01:05.4]} 53... Kh1 {[%clk 0:00:34.1]} 54. Qb1+ {[%clk
0:01:04.7]} 54... Kg2 {[%clk 0:00:34.2]} 55. Qc2+ {[%clk 0:01:05.6]} 55... Kg1
{[%clk 0:00:34.3]} 56. Qd1+ {[%clk 0:01:05.7]} 56... Kg2 {[%clk 0:00:34.5]} 57.
Qe2+ {[%clk 0:01:05.3]} 57... Kg1 {[%clk 0:00:34.8]} 58. Qg4+ {[%clk 0:01:01.1]}
58... Kh2 {[%clk 0:00:34.7]} 59. Kc5 {[%clk 0:00:59.3]} 1-0

[Event "*** Titled Tuesday Blitz"]
[Site "Chess.com"]
[Date "2020.10.27"]
[Round "2"]
[White "Leonid_Starozhilov"]
[Black "LyonBeast"]
[Result "0-1"]
[WhiteElo "2636"]
[BlackElo "3050"]
[TimeControl "180+1"]
[EndTime "10:17:48 PDT"]
[Termination "LyonBeast won by resignation"]

1. e4 {[%clk 0:03:00.9]} 1... c5 {[%clk 0:02:53.6]} 2. Nf3 {[%clk 0:03:01.1]}
2... Nc6 {[%clk 0:02:53.6]} 3. Bb5 {[%clk 0:03:01.5]} 3... e6 {[%clk 0:02:52.4]}
4. O-O {[%clk 0:03:01.6]} 4... Nge7 {[%clk 0:02:52.6]} 5. Re1 {[%clk 0:03:02.2]}
5... a6 {[%clk 0:02:52.8]} 6. Bxc6 {[%clk 0:03:02.9]} 6... Nxc6 {[%clk
0:02:52.4]} 7. d4 {[%clk 0:03:03.6]} 7... cxd4 {[%clk 0:02:52.4]} 8. Nxd4 {[%clk
0:03:04.5]} 8... d6 {[%clk 0:02:52.3]} 9. c4 {[%clk 0:03:04.6]} 9... Be7 {[%clk
0:02:51.6]} 10. Nc3 {[%clk 0:03:04.8]} 10... O-O {[%clk 0:02:51.7]} 11. Be3
{[%clk 0:03:00.8]} 11... Bd7 {[%clk 0:02:51.5]} 12. b3 {[%clk 0:03:00.1]} 12...
Ne5 {[%clk 0:02:47.5]} 13. a4 {[%clk 0:02:57.1]} 13... Bc6 {[%clk 0:02:43.2]}
14. h3 {[%clk 0:02:55.1]} 14... Rc8 {[%clk 0:02:36]} 15. Qd2 {[%clk 0:02:54]}
15... Nd7 {[%clk 0:02:36]} 16. Nd5 {[%clk 0:02:31.3]} 16... exd5 {[%clk
0:02:32.2]} 17. exd5 {[%clk 0:02:32.2]} 17... Bxd5 {[%clk 0:02:31.1]} 18. cxd5
{[%clk 0:02:33.1]} 18... Bf6 {[%clk 0:02:27.8]} 19. Rab1 {[%clk 0:02:31.4]}
19... Re8 {[%clk 0:02:20.5]} 20. Ne2 {[%clk 0:02:03.2]} 20... Nc5 {[%clk
0:02:13.7]} 21. Rec1 {[%clk 0:01:43.5]} 21... Qd7 {[%clk 0:02:05.2]} 22. Bxc5
{[%clk 0:01:22.1]} 22... dxc5 {[%clk 0:02:06.1]} 23. Qd3 {[%clk 0:01:17.3]}
23... Red8 {[%clk 0:02:02.1]} 24. Rd1 {[%clk 0:01:17.1]} 24... Be5 {[%clk
0:01:49.2]} 25. Ng3 {[%clk 0:01:06.3]} 25... g6 {[%clk 0:01:43.7]} 26. Ne4
{[%clk 0:01:03.5]} 26... Kg7 {[%clk 0:01:43.5]} 27. Rbc1 {[%clk 0:00:55.4]}
27... Bd4 {[%clk 0:01:16.7]} 28. Nxc5 {[%clk 0:00:52]} 28... Bxc5 {[%clk
0:01:11.4]} 29. Rxc5 {[%clk 0:00:52.2]} 29... Qd6 {[%clk 0:01:10.2]} 30. Qd4+
{[%clk 0:00:51.5]} 30... Kg8 {[%clk 0:01:09.7]} 31. b4 {[%clk 0:00:36.7]} 31...
b6 {[%clk 0:01:09.9]} 32. Rxc8 {[%clk 0:00:35.6]} 32... Rxc8 {[%clk 0:01:10.8]}
33. Re1 {[%clk 0:00:26.4]} 33... h5 {[%clk 0:01:08.3]} 34. g3 {[%clk 0:00:20.4]}
34... b5 {[%clk 0:01:05.7]} 35. axb5 {[%clk 0:00:15.7]} 35... axb5 {[%clk
0:01:06.6]} 36. Kg2 {[%clk 0:00:15.8]} 36... Kh7 {[%clk 0:01:04.3]} 37. Rd1
{[%clk 0:00:04.7]} 37... Rc4 {[%clk 0:01:03.9]} 38. Qa7 {[%clk 0:00:04.3]} 38...
Kg7 {[%clk 0:01:03]} 39. Qe3 {[%clk 0:00:04]} 39... h4 {[%clk 0:00:57.5]} 40.
Rd4 {[%clk 0:00:04]} 40... hxg3 {[%clk 0:00:50.8]} 41. Rxc4 {[%clk 0:00:03.9]}
41... bxc4 {[%clk 0:00:51.7]} 42. Qd4+ {[%clk 0:00:04.4]} 42... Qf6 {[%clk
0:00:41.1]} 43. Qxf6+ {[%clk 0:00:04.7]} 43... Kxf6 {[%clk 0:00:41.5]} 44. b5
{[%clk 0:00:05.6]} 44... Ke7 {[%clk 0:00:41.3]} 45. b6 {[%clk 0:00:06.2]} 45...
Kd7 {[%clk 0:00:40.9]} 46. b7 {[%clk 0:00:06]} 46... Kc7 {[%clk 0:00:40.8]} 0-1

[Event "*** Titled Tuesday Blitz"]
[Site "Chess.com"]
[Date "2020.10.27"]
[Round "2"]
[White "VladimirBugayev"]
[Black "Mr_Sinigami"]
[Result "0-1"]
[WhiteElo "2249"]
[BlackElo "2473"]
[TimeControl "180+1"]
[EndTime "10:17:48 PDT"]
[Termination "Mr_Sinigami won on time"]

1. e4 {[%clk 0:03:00.9]} 1... c5 {[%clk 0:02:59.2]} 2. a3 {[%clk 0:03:00.8]}
2... e6 {[%clk 0:02:54.6]} 3. b4 {[%clk 0:03:00.4]} 3... d5 {[%clk 0:02:51.5]}
4. exd5 {[%clk 0:02:57]} 4... exd5 {[%clk 0:02:50.7]} 5. bxc5 {[%clk 0:02:57.9]}
5... Bxc5 {[%clk 0:02:49]} 6. d4 {[%clk 0:02:58.8]} 6... Bd6 {[%clk 0:02:45.2]}
7. Bd3 {[%clk 0:02:59.2]} 7... Nf6 {[%clk 0:02:44.6]} 8. Ne2 {[%clk 0:02:56]}
8... O-O {[%clk 0:02:40.3]} 9. Bf4 {[%clk 0:02:15.9]} 9... Bxf4 {[%clk
0:02:33.5]} 10. Nxf4 {[%clk 0:02:15.9]} 10... Re8+ {[%clk 0:02:34.1]} 11. Ne2
{[%clk 0:02:16.4]} 11... Qd6 {[%clk 0:02:20.6]} 12. O-O {[%clk 0:02:14.3]} 12...
Ng4 {[%clk 0:02:18.5]} 13. Ng3 {[%clk 0:02:09.7]} 13... Nc6 {[%clk 0:02:10.7]}
14. h3 {[%clk 0:02:01]} 14... Nxf2 {[%clk 0:01:33.8]} 15. Qf3 {[%clk 0:01:44.2]}
15... Nxh3+ {[%clk 0:01:13.9]} 16. gxh3 {[%clk 0:01:42.9]} 16... Bxh3 {[%clk
0:01:11.3]} 17. Qxf7+ {[%clk 0:01:27.4]} 17... Kh8 {[%clk 0:01:08.2]} 18. Qf4
{[%clk 0:01:22.8]} 18... Qe7 {[%clk 0:00:57]} 19. Nd2 {[%clk 0:00:59.2]} 19...
Bxf1 {[%clk 0:00:54.8]} 20. Ndxf1 {[%clk 0:00:52.2]} 20... Rf8 {[%clk
0:00:54.6]} 21. Qg4 {[%clk 0:00:49.1]} 21... Qf6 {[%clk 0:00:51.1]} 22. Rb1
{[%clk 0:00:27.6]} 22... Nxd4 {[%clk 0:00:45.9]} 23. Rxb7 {[%clk 0:00:21.7]}
23... Rab8 {[%clk 0:00:34.8]} 24. Rxb8 {[%clk 0:00:20.1]} 24... Rxb8 {[%clk
0:00:33.8]} 25. Nh5 {[%clk 0:00:20.2]} 25... Qe5 {[%clk 0:00:31.2]} 26. Nf4
{[%clk 0:00:14.7]} 26... Rf8 {[%clk 0:00:25.9]} 27. Ng6+ {[%clk 0:00:13.4]}
27... hxg6 {[%clk 0:00:23.9]} 28. Qxg6 {[%clk 0:00:13.6]} 28... Nf3+ {[%clk
0:00:15.8]} 29. Kh1 {[%clk 0:00:13.2]} 29... Kg8 {[%clk 0:00:15.3]} 30. Qh7+
{[%clk 0:00:11.3]} 30... Kf7 {[%clk 0:00:15.4]} 31. Bg6+ {[%clk 0:00:11.1]}
31... Ke7 {[%clk 0:00:15.4]} 32. Qh3 {[%clk 0:00:08.6]} 32... Rf4 {[%clk
0:00:14.4]} 0-1

[Event "*** Titled Tuesday Blitz"]
[Site "Chess.com"]
[Date "2020.10.27"]
[Round "2"]
[White "xamax2000"]
[Black "paulrusan"]
[Result "1-0"]
[WhiteElo "2663"]
[BlackElo "2216"]
[TimeControl "180+1"]
[EndTime "10:17:49 PDT"]
[Termination "xamax2000 won on time"]

1. e4 {[%clk 0:02:55.8]} 1... g6 {[%clk 0:02:59.6]} 2. d4 {[%clk 0:02:55.9]}
2... Bg7 {[%clk 0:02:59.6]} 3. Nf3 {[%clk 0:02:56.4]} 3... d6 {[%clk 0:02:59.5]}
4. c3 {[%clk 0:02:56.8]} 4... Nf6 {[%clk 0:02:58.9]} 5. Bd3 {[%clk 0:02:57.1]}
5... O-O {[%clk 0:02:59.3]} 6. O-O {[%clk 0:02:58]} 6... b6 {[%clk 0:02:59.1]}
7. h3 {[%clk 0:02:57.8]} 7... Bb7 {[%clk 0:02:59.4]} 8. Re1 {[%clk 0:02:58.7]}
8... Nbd7 {[%clk 0:02:59.4]} 9. Bg5 {[%clk 0:02:59.2]} 9... e5 {[%clk
0:02:58.9]} 10. Nbd2 {[%clk 0:02:59.1]} 10... h6 {[%clk 0:02:58.5]} 11. Bh4
{[%clk 0:02:59.5]} 11... Re8 {[%clk 0:02:58.4]} 12. a4 {[%clk 0:02:58.4]} 12...
a6 {[%clk 0:02:58]} 13. b4 {[%clk 0:02:57.7]} 13... Qe7 {[%clk 0:02:57.2]} 14.
Bg3 {[%clk 0:02:57.5]} 14... Nh5 {[%clk 0:02:56.2]} 15. Bh2 {[%clk 0:02:57.7]}
15... Qf6 {[%clk 0:02:40.7]} 16. Qc2 {[%clk 0:02:47]} 16... Nf4 {[%clk
0:02:39.8]} 17. Bf1 {[%clk 0:02:47.1]} 17... g5 {[%clk 0:02:27.1]} 18. Re3
{[%clk 0:02:42.7]} 18... Nf8 {[%clk 0:02:23.7]} 19. Rae1 {[%clk 0:02:35.1]}
19... N8e6 {[%clk 0:02:23.6]} 20. Nb3 {[%clk 0:02:30.9]} 20... Rac8 {[%clk
0:02:18.2]} 21. Bc4 {[%clk 0:02:11.6]} 21... c5 {[%clk 0:02:12]} 22. bxc5 {[%clk
0:02:09.3]} 22... bxc5 {[%clk 0:02:10.6]} 23. d5 {[%clk 0:02:08.5]} 23... Nd4
{[%clk 0:02:00.4]} 24. cxd4 {[%clk 0:02:01.4]} 24... cxd4 {[%clk 0:02:00.4]} 25.
Bxf4 {[%clk 0:01:57.7]} 25... dxe3 {[%clk 0:01:25.2]} 26. Bxe3 {[%clk
0:01:58.6]} 26... Qd8 {[%clk 0:01:19.5]} 27. Nfd2 {[%clk 0:01:55.7]} 27... Kh8
{[%clk 0:01:16.1]} 28. Qd3 {[%clk 0:01:55.3]} 28... f5 {[%clk 0:01:12.4]} 29.
exf5 {[%clk 0:01:49.6]} 29... e4 {[%clk 0:01:12.8]} 30. Nxe4 {[%clk 0:01:48.8]}
30... Be5 {[%clk 0:01:03.3]} 31. Nbd2 {[%clk 0:01:45.5]} 31... Qa5 {[%clk
0:01:00.1]} 32. Rb1 {[%clk 0:01:44.3]} 32... Ba8 {[%clk 0:00:58.1]} 33. f6
{[%clk 0:01:38.6]} 33... Rb8 {[%clk 0:00:51]} 34. Rxb8 {[%clk 0:01:33.8]} 34...
Rxb8 {[%clk 0:00:50.9]} 35. g3 {[%clk 0:01:34]} 35... Qd8 {[%clk 0:00:33.2]} 36.
Bd4 {[%clk 0:01:06.6]} 36... Bb7 {[%clk 0:00:28.6]} 37. Bxe5 {[%clk 0:01:06.1]}
37... dxe5 {[%clk 0:00:28.9]} 38. d6 {[%clk 0:01:06.5]} 38... Bxe4 {[%clk
0:00:23.5]} 39. Nxe4 {[%clk 0:01:05.9]} 39... Qb6 {[%clk 0:00:19.1]} 40. f7
{[%clk 0:01:04.6]} 40... Kg7 {[%clk 0:00:15.7]} 41. Kg2 {[%clk 0:01:03.3]} 41...
Qd4 {[%clk 0:00:15.6]} 42. Qxd4 {[%clk 0:01:02.9]} 42... exd4 {[%clk 0:00:15.8]}
43. Nc5 {[%clk 0:01:01.1]} 43... d3 {[%clk 0:00:08.8]} 44. Kf3 {[%clk
0:00:53.1]} 44... d2 {[%clk 0:00:01.3]} 45. Ke2 {[%clk 0:00:53.1]} 1-0

[Event "*** Titled Tuesday Blitz"]
[Site "Chess.com"]
[Date "2020.10.27"]
[Round "2"]
[White "littleplotkin"]
[Black "brunomorado"]
[Result "1/2-1/2"]
[WhiteElo "2689"]
[BlackElo "2407"]
[TimeControl "180+1"]
[EndTime "10:17:49 PDT"]
[Termination "Game drawn - insufficient material"]

1. e4 {[%clk 0:03:00.9]} 1... c5 {[%clk 0:03:00.2]} 2. Nf3 {[%clk 0:02:59]} 2...
Nc6 {[%clk 0:03:00.6]} 3. c3 {[%clk 0:02:58.8]} 3... d5 {[%clk 0:03:00.7]} 4.
exd5 {[%clk 0:02:59.7]} 4... Qxd5 {[%clk 0:03:01.6]} 5. d4 {[%clk 0:02:59.5]}
5... Bg4 {[%clk 0:03:02.3]} 6. Be2 {[%clk 0:02:58.6]} 6... e6 {[%clk 0:03:02.2]}
7. Na3 {[%clk 0:02:57.8]} 7... Nf6 {[%clk 0:03:00.8]} 8. Nb5 {[%clk 0:02:50.5]}
8... Rc8 {[%clk 0:03:00.6]} 9. Bf4 {[%clk 0:02:51]} 9... Qd7 {[%clk 0:02:40.6]}
10. dxc5 {[%clk 0:02:48]} 10... Bxc5 {[%clk 0:02:37.4]} 11. Nd6+ {[%clk
0:02:46.8]} 11... Bxd6 {[%clk 0:02:36.4]} 12. Qxd6 {[%clk 0:02:44.6]} 12... Qxd6
{[%clk 0:02:33.2]} 13. Bxd6 {[%clk 0:02:45.5]} 13... Rd8 {[%clk 0:02:33.8]} 14.
Rd1 {[%clk 0:02:40.6]} 14... Ne4 {[%clk 0:02:31.7]} 15. Ba3 {[%clk 0:02:37.6]}
15... Rxd1+ {[%clk 0:02:30]} 16. Bxd1 {[%clk 0:02:36.2]} 16... Kd7 {[%clk
0:02:30.4]} 17. h3 {[%clk 0:02:36.1]} 17... Bh5 {[%clk 0:02:30.3]} 18. O-O
{[%clk 0:02:33.4]} 18... Kc7 {[%clk 0:02:29.6]} 19. Nd4 {[%clk 0:02:27.6]} 19...
Bxd1 {[%clk 0:02:27.4]} 20. Rxd1 {[%clk 0:02:28.5]} 20... Rd8 {[%clk 0:02:12.4]}
21. Nb5+ {[%clk 0:02:25.8]} 21... Kb6 {[%clk 0:02:12.5]} 22. Rxd8 {[%clk
0:02:23.7]} 22... Nxd8 {[%clk 0:02:13.4]} 23. Nd6 {[%clk 0:02:24.2]} 23... Nxd6
{[%clk 0:02:13]} 24. Bxd6 {[%clk 0:02:25.1]} 24... Kc6 {[%clk 0:02:11.3]} 25.
Bf8 {[%clk 0:02:22.3]} 25... g6 {[%clk 0:02:10.7]} 26. Kf1 {[%clk 0:02:22.1]}
26... Kd5 {[%clk 0:02:11.1]} 27. Ke2 {[%clk 0:02:21.7]} 27... h5 {[%clk
0:02:09.7]} 28. Kd3 {[%clk 0:02:20.5]} 28... b5 {[%clk 0:02:09.8]} 29. b3 {[%clk
0:02:20]} 29... Nc6 {[%clk 0:02:09.8]} 30. f4 {[%clk 0:02:20]} 30... Na5 {[%clk
0:02:03.6]} 31. Bb4 {[%clk 0:02:18.6]} 31... Nb7 {[%clk 0:02:01.4]} 32. c4+
{[%clk 0:02:14.8]} 32... bxc4+ {[%clk 0:01:59.9]} 33. bxc4+ {[%clk 0:02:15.7]}
33... Kc6 {[%clk 0:02:00.3]} 34. Kd4 {[%clk 0:02:16.3]} 34... Nd6 {[%clk
0:01:49.6]} 35. g4 {[%clk 0:01:42.8]} 35... hxg4 {[%clk 0:01:43.9]} 36. hxg4
{[%clk 0:01:43.7]} 36... f6 {[%clk 0:01:36.7]} 37. Bxd6 {[%clk 0:01:34.4]} 37...
Kxd6 {[%clk 0:01:37.6]} 38. g5 {[%clk 0:01:35.1]} 38... fxg5 {[%clk 0:00:42.4]}
39. fxg5 {[%clk 0:01:36]} 39... a5 {[%clk 0:00:40.3]} 40. c5+ {[%clk 0:01:13.4]}
40... Kc6 {[%clk 0:00:39.5]} 41. Ke5 {[%clk 0:01:13.5]} 41... Kxc5 {[%clk
0:00:40]} 42. Kxe6 {[%clk 0:01:12.7]} 42... Kb4 {[%clk 0:00:40.9]} 43. Kf6
{[%clk 0:01:12.5]} 43... Ka3 {[%clk 0:00:41.8]} 44. Kxg6 {[%clk 0:01:13.4]}
44... Kxa2 {[%clk 0:00:42.7]} 45. Kf5 {[%clk 0:01:10.2]} 45... a4 {[%clk
0:00:42.9]} 46. g6 {[%clk 0:01:11.1]} 46... a3 {[%clk 0:00:43.3]} 47. g7 {[%clk
0:01:12]} 47... Kb1 {[%clk 0:00:43.3]} 48. g8=Q {[%clk 0:01:12.9]} 48... a2
{[%clk 0:00:44.2]} 49. Qb3+ {[%clk 0:01:12.8]} 49... Ka1 {[%clk 0:00:44.6]} 50.
Qd1+ {[%clk 0:01:09.5]} 50... Kb2 {[%clk 0:00:44.7]} 51. Qd2+ {[%clk 0:01:10.2]}
51... Kb1 {[%clk 0:00:43.9]} 52. Qb4+ {[%clk 0:01:10]} 52... Ka1 {[%clk
0:00:43.8]} 53. Qd6 {[%clk 0:01:10.3]} 53... Kb2 {[%clk 0:00:42.1]} 54. Qb6+
{[%clk 0:01:10.1]} 54... Ka1 {[%clk 0:00:41.7]} 55. Qd4+ {[%clk 0:01:08.4]}
55... Kb1 {[%clk 0:00:41.8]} 56. Qb4+ {[%clk 0:01:08]} 56... Ka1 {[%clk
0:00:42]} 57. Qa3 {[%clk 0:01:05.9]} 57... Kb1 {[%clk 0:00:42.2]} 58. Qb3+
{[%clk 0:01:03.9]} 58... Ka1 {[%clk 0:00:41.9]} 59. Qd1+ {[%clk 0:01:00.6]}
59... Kb2 {[%clk 0:00:41.8]} 60. Qe2+ {[%clk 0:01:01]} 60... Kb1 {[%clk
0:00:41.5]} 61. Qf1+ {[%clk 0:01:01.4]} 61... Kb2 {[%clk 0:00:41.6]} 62. Qg2+
{[%clk 0:01:02]} 62... Kb1 {[%clk 0:00:41.8]} 63. Ke4 {[%clk 0:01:00.7]} 63...
a1=Q {[%clk 0:00:41.9]} 64. Kd3 {[%clk 0:01:01.6]} 64... Qa3+ {[%clk 0:00:40.3]}
65. Kc4 {[%clk 0:01:01.7]} 65... Qa2+ {[%clk 0:00:40.3]} 66. Qxa2+ {[%clk
0:01:01.6]} 66... Kxa2 {[%clk 0:00:41.2]} 1/2-1/2

[Event "*** Titled Tuesday Blitz"]
[Site "Chess.com"]
[Date "2020.10.27"]
[Round "2"]
[White "Flawless_Fighter"]
[Black "Zhigalko_Sergei"]
[Result "1-0"]
[WhiteElo "2606"]
[BlackElo "2897"]
[TimeControl "180+1"]
[EndTime "10:17:50 PDT"]
[Termination "Flawless_Fighter won by resignation"]

1. d4 {[%clk 0:03:00.9]} 1... Nf6 {[%clk 0:02:59.2]} 2. c4 {[%clk 0:02:59.4]}
2... e6 {[%clk 0:02:58.8]} 3. g3 {[%clk 0:02:59.6]} 3... c5 {[%clk 0:02:58.8]}
4. d5 {[%clk 0:02:59.1]} 4... exd5 {[%clk 0:02:59.3]} 5. cxd5 {[%clk 0:03:00]}
5... d6 {[%clk 0:03:00]} 6. Nc3 {[%clk 0:02:59.4]} 6... g6 {[%clk 0:03:00.3]} 7.
Bg2 {[%clk 0:02:59.5]} 7... Bg7 {[%clk 0:03:00.8]} 8. Nf3 {[%clk 0:03:00.2]}
8... O-O {[%clk 0:03:00.9]} 9. O-O {[%clk 0:03:00.9]} 9... Re8 {[%clk
0:03:00.6]} 10. Re1 {[%clk 0:03:01.1]} 10... a6 {[%clk 0:02:56.3]} 11. a4 {[%clk
0:03:01.6]} 11... Nbd7 {[%clk 0:02:56.4]} 12. e4 {[%clk 0:02:47.7]} 12... Ng4
{[%clk 0:02:55.2]} 13. h3 {[%clk 0:02:40.1]} 13... Nge5 {[%clk 0:02:55.3]} 14.
Nxe5 {[%clk 0:02:34.2]} 14... Nxe5 {[%clk 0:02:48.1]} 15. f4 {[%clk 0:02:29.1]}
15... Nd7 {[%clk 0:02:45.6]} 16. Be3 {[%clk 0:02:20.1]} 16... Rb8 {[%clk
0:02:44.3]} 17. Qd3 {[%clk 0:02:17.2]} 17... Qa5 {[%clk 0:02:09.8]} 18. Kh2
{[%clk 0:02:05.2]} 18... Qb4 {[%clk 0:01:55.9]} 19. Re2 {[%clk 0:02:03.4]} 19...
b5 {[%clk 0:01:35.5]} 20. axb5 {[%clk 0:02:03.4]} 20... axb5 {[%clk 0:01:36.2]}
21. Bf2 {[%clk 0:01:32.6]} 21... c4 {[%clk 0:01:22.7]} 22. Qd1 {[%clk
0:01:29.7]} 22... Nc5 {[%clk 0:01:21.7]} 23. Na2 {[%clk 0:01:04.2]} 23... Qa5
{[%clk 0:01:06.4]} 24. Bxc5 {[%clk 0:01:04.6]} 24... dxc5 {[%clk 0:01:06.5]} 25.
e5 {[%clk 0:01:05.1]} 25... Bf5 {[%clk 0:01:00]} 26. Nc3 {[%clk 0:01:03.2]}
26... Qd8 {[%clk 0:00:52.6]} 27. Ne4 {[%clk 0:01:02.7]} 27... Bxe4 {[%clk
0:00:41.6]} 28. Bxe4 {[%clk 0:01:03.2]} 28... f6 {[%clk 0:00:42.1]} 29. d6
{[%clk 0:00:55.5]} 29... fxe5 {[%clk 0:00:40.9]} 30. Bc6 {[%clk 0:00:56]} 30...
Rf8 {[%clk 0:00:29]} 31. fxe5 {[%clk 0:00:55.9]} 31... Qg5 {[%clk 0:00:29.4]}
32. Qd5+ {[%clk 0:00:46.9]} 32... Kh8 {[%clk 0:00:29.3]} 33. e6 {[%clk
0:00:47.5]} 33... Rf5 {[%clk 0:00:25.7]} 34. Qg2 {[%clk 0:00:44.8]} 34... Be5
{[%clk 0:00:13.6]} 35. e7 {[%clk 0:00:40.6]} 35... h5 {[%clk 0:00:13.3]} 36. Ra8
{[%clk 0:00:36.9]} 36... Rxa8 {[%clk 0:00:10]} 37. Bxa8 {[%clk 0:00:37.8]} 37...
h4 {[%clk 0:00:06.5]} 38. e8=Q+ {[%clk 0:00:37.7]} 38... Kg7 {[%clk 0:00:07.2]}
39. Qe7+ {[%clk 0:00:31.5]} 39... Qxe7 {[%clk 0:00:05.9]} 40. dxe7 {[%clk
0:00:32.4]} 40... hxg3+ {[%clk 0:00:06.2]} 41. Kh1 {[%clk 0:00:32]} 1-0

[Event "*** Titled Tuesday Blitz"]
[Site "Chess.com"]
[Date "2020.10.27"]
[Round "2"]
[White "Chessalary"]
[Black "Sesleria"]
[Result "1-0"]
[WhiteElo "2391"]
[BlackElo "1896"]
[TimeControl "180+1"]
[EndTime "10:17:50 PDT"]
[Termination "Chessalary won by resignation"]

1. e4 {[%clk 0:03:00.9]} 1... e5 {[%clk 0:02:59.4]} 2. Nf3 {[%clk 0:03:01.4]}
2... Nc6 {[%clk 0:02:59.7]} 3. Bc4 {[%clk 0:03:01.1]} 3... Nf6 {[%clk
0:02:59.5]} 4. d3 {[%clk 0:03:00.3]} 4... Bc5 {[%clk 0:02:58.4]} 5. c3 {[%clk
0:02:56.4]} 5... Bb6 {[%clk 0:02:55.3]} 6. O-O {[%clk 0:02:55.3]} 6... d6 {[%clk
0:02:55.1]} 7. h3 {[%clk 0:02:53.6]} 7... h6 {[%clk 0:02:50.5]} 8. a4 {[%clk
0:02:49]} 8... a5 {[%clk 0:02:39.5]} 9. Bb3 {[%clk 0:02:48]} 9... g5 {[%clk
0:02:14.9]} 10. Nbd2 {[%clk 0:02:38.1]} 10... g4 {[%clk 0:02:14.6]} 11. hxg4
{[%clk 0:02:38.8]} 11... Bxg4 {[%clk 0:02:10]} 12. Nc4 {[%clk 0:02:38.3]} 12...
Rg8 {[%clk 0:01:20.7]} 13. Bxh6 {[%clk 0:02:04.8]} 13... Bh3 {[%clk 0:01:02.3]}
14. Ng5 {[%clk 0:02:02.5]} 14... Bg4 {[%clk 0:00:51.1]} 15. Qd2 {[%clk
0:01:51.1]} 15... Bh5 {[%clk 0:00:28.7]} 16. Nxb6 {[%clk 0:01:29.2]} 16... cxb6
{[%clk 0:00:28.8]} 17. f4 {[%clk 0:01:29.1]} 17... Ng4 {[%clk 0:00:19.3]} 18.
Qe2 {[%clk 0:01:04.1]} 18... Qf6 {[%clk 0:00:16]} 19. Bxf7+ {[%clk 0:00:18.1]}
19... Bxf7 {[%clk 0:00:14.2]} 20. Qxg4 {[%clk 0:00:18.7]} 20... Qxh6 {[%clk
0:00:13.7]} 21. Nxf7 {[%clk 0:00:17.7]} 21... Rxg4 {[%clk 0:00:10.1]} 22. Nxh6
{[%clk 0:00:17.5]} 22... Rxf4 {[%clk 0:00:10]} 23. Rxf4 {[%clk 0:00:17.1]} 23...
exf4 {[%clk 0:00:10.9]} 24. Rf1 {[%clk 0:00:17.6]} 24... Ne5 {[%clk 0:00:10.9]}
25. d4 {[%clk 0:00:17]} 25... Nd3 {[%clk 0:00:11.4]} 26. b3 {[%clk 0:00:14.6]}
26... O-O-O {[%clk 0:00:10]} 27. Rf3 {[%clk 0:00:13.3]} 27... Nc1 {[%clk
0:00:09.6]} 28. c4 {[%clk 0:00:11.7]} 28... Ne2+ {[%clk 0:00:09.3]} 29. Kf2
{[%clk 0:00:11.3]} 29... Nxd4 {[%clk 0:00:10.2]} 30. Rxf4 {[%clk 0:00:10.8]}
30... Nxb3 {[%clk 0:00:10.5]} 31. Nf7 {[%clk 0:00:10.1]} 31... Nc5 {[%clk
0:00:10.4]} 32. Nxd8 {[%clk 0:00:09.6]} 32... Kxd8 {[%clk 0:00:10.7]} 33. Ke3
{[%clk 0:00:09.8]} 33... Nxa4 {[%clk 0:00:10.6]} 34. g4 {[%clk 0:00:10.1]} 1-0